bitfinex-derivatives/quotes_ETHF0:USTF0_20241023
["timestamp","ask_amount","ask_price","bid_price","bid_amount"]
[1729691024997,4.59059657,2578.7,2578.6,0.4005]
[1729691025591,4.20255657,2578.7,2578.6,0.4005]
[1729691025790,4.20255657,2578.7,2578.6,0.78855]
[1729691029694,0.3993,2579.1,2578.6,0.4005]
[1729691029894,0.38802,2578.9,2578.7,0.38803]
[1729691030295,0.38802,2578.9,2578.6,0.4005]
[1729691030492,0.38802,2578.9,2578.7,0.38803]
[1729691030688,0.38802,2578.8,2578.6,0.78854]
[1729691030894,4.59701416,2579.0,2578.8,0.38801]
[1729691031093,4.7738823,2579.1,2578.9,0.80751]
[1729691031295,0.38799,2579.0,2578.9,0.4195]
[1729691031489,4.82273314,2579.0,2578.9,0.4195]
[1729691031891,0.38799,2579.0,2578.9,0.4195]
[1729691032094,4.43474314,2579.0,2578.9,0.8075]
[1729691032292,4.43474314,2579.0,2578.9,0.4195]
[1729691032493,4.82273314,2579.0,2578.9,0.4195]
[1729691032689,0.38799,2579.0,2578.9,0.4195]
[1729691032901,4.57338505,2579.0,2578.9,0.4195]
[1729691034293,0.38801,2578.9,2578.6,0.78855]
[1729691034500,0.38804,2578.7,2578.6,0.4005]
[1729691034698,0.38804,2578.7,2578.6,0.78855]
[1729691034904,0.38804,2578.7,2578.6,0.4005]
[1729691035106,4.55153515,2578.8,2578.6,0.4005]
[1729691035403,4.93957515,2578.8,2578.6,0.78855]
[1729691036900,4.93957515,2578.8,2578.7,0.38804]
[1729691036901,4.12683515,2578.8,2578.7,0.38804]
[1729691037301,4.51486515,2578.8,2578.6,0.78855]
[1729691038604,0.38804,2578.7,2578.6,0.78855]
[1729691038801,4.12683515,2578.8,2578.6,0.78855]
[1729691039102,4.51486515,2578.8,2578.7,0.38804]
[1729691039501,4.51486515,2578.8,2578.6,0.4005]
[1729691039802,4.51486515,2578.8,2578.6,0.78854]
[1729691040401,4.51486515,2578.8,2578.6,0.4005]
[1729691040607,4.51486515,2578.8,2578.6,0.78854]
[1729691041102,0.4179,2578.9,2578.6,0.4005]
[1729691041308,0.38803,2578.8,2578.7,0.38803]
[1729691041601,0.38803,2578.8,2578.6,0.4005]
[1729691041602,0.38801,2578.9,2578.6,0.4005]
[1729691041807,0.38801,2578.9,2578.7,0.38803]
[1729691042102,0.38802,2578.8,2578.7,0.38803]
[1729691043011,4.58039224,2578.9,2578.8,0.38802]
[1729691043506,4.19238224,2578.9,2578.8,0.38802]
[1729691043703,3.5957,2579.2,2578.8,3.8776]
[1729691043704,3.2078,2579.2,2578.8,3.8776]
[1729691043907,3.2078,2579.2,2579.1,0.38798]
[1729691044711,3.2078,2579.2,2579.1,0.77558]
[1729691045608,0.38793,2579.5,2579.3,0.38794]
[1729691045908,4.37098649,2579.2,2579.1,41.1876]
[1729691046102,4.37098649,2579.2,2579.1,41.57558]
[1729691046302,0.38795,2579.3,2579.2,0.38796]
[1729691046702,4.43776962,2579.3,2579.2,0.38796]
[1729691046899,4.43774962,2579.5,2579.3,0.38794]
[1729691047101,0.38793,2579.4,2579.3,0.38794]
[1729691047305,4.04981962,2579.4,2579.1,41.1876]
[1729691047608,4.46467612,2579.5,2579.1,45.18756]
[1729691047911,3.2078,2579.6,2579.5,0.38792]
[1729691049207,0.81208,2579.8,2579.6,0.38789]
[1729691049615,4.04278176,2579.7,2579.6,0.38789]
[1729691049914,3.2078,2579.9,2579.8,0.38787]
[1729691050103,3.2078,2579.9,2579.8,3.41787]
[1729691051409,3.2078,2579.9,2579.8,0.38787]
[1729691053410,0.38785,2580.0,2579.7,3.03]
[1729691053607,4.99901,2580.3,2579.9,0.38785]
[1729691053809,0.38785,2580.0,2579.9,0.38785]
[1729691054117,0.38786,2580.0,2579.8,0.38786]
[1729691054305,4.11185529,2580.2,2579.7,3.03]
[1729691054306,0.38783,2580.1,2579.9,0.38784]
[1729691054512,4.49967529,2580.2,2580.1,0.38783]
[1729691054713,4.11185529,2580.2,2580.1,0.38783]
[1729691055112,4.11185529,2580.2,2580.1,0.4138]
[1729691055414,4.49966529,2580.2,2580.1,0.4138]
[1729691056914,4.11185529,2580.2,2579.9,6.2378]
[1729691057116,4.11185529,2580.2,2579.9,3.2078]
[1729691057321,5.08140529,2580.2,2579.7,3.03]
[1729691057620,5.08140529,2580.2,2579.7,3.41788]
[1729691058021,5.08140529,2580.2,2579.8,0.38787]
[1729691058222,4.11185529,2580.2,2579.7,3.03]
[1729691058521,4.11185529,2580.2,2579.6,3.2078]
[1729691058522,0.38786,2580.0,2579.9,3.03]
[1729691058923,0.96958,2580.1,2579.7,0.38788]
[1729691059121,0.38789,2579.7,2579.6,3.5957]
[1729691059421,0.38789,2579.7,2579.6,3.2078]
[1729691059719,7.42658829,2579.7,2579.2,0.38796]
[1729691059929,0.38795,2579.3,2579.2,0.38796]
[1729691060619,0.38793,2579.5,2579.4,0.38792]
[1729691060819,0.38791,2579.6,2579.5,0.38792]
[1729691061020,0.38791,2579.6,2579.5,0.3998]
[1729691062727,0.3879,2579.7,2579.5,0.3998]
[1729691063025,0.3879,2579.6,2579.5,0.78771]
[1729691063618,0.8268,2579.9,2579.5,0.78771]
[1729691063619,0.8268,2579.9,2579.5,0.3998]
[1729691063825,0.3879,2579.7,2579.6,0.3879]
[1729691064231,4.3604004,2579.8,2579.7,0.38789]
[1729691064522,4.42941,2580.3,2579.8,0.96967]
[1729691064725,0.38782,2580.2,2580.1,0.38783]
[1729691064918,8.25256721,2580.3,2579.8,3.03]
[1729691065119,4.0416,2580.3,2579.9,43.83]
[1729691065315,3.2078,2580.3,2580.1,0.38782]
[1729691065519,3.59561,2580.3,2580.1,0.38782]
[1729691066725,3.2078,2580.3,2580.1,0.38782]
[1729691067127,3.59561,2580.3,2580.1,0.38782]
[1729691067527,3.2078,2580.3,2580.0,0.4088]
[1729691067833,3.59561,2580.3,2580.1,0.38783]
[1729691068035,3.2078,2580.3,2580.2,0.38781]
[1729691068229,3.2078,2580.3,2580.0,0.4088]
[1729691068727,3.2078,2580.3,2580.2,0.38781]
[1729691068931,3.59561,2580.3,2580.1,0.38782]
[1729691069123,0.38781,2580.2,2580.1,0.38782]
[1729691070237,3.59561,2580.3,2580.1,0.38782]
[1729691070433,3.2078,2580.3,2580.2,0.38781]
[1729691070734,0.38781,2580.2,2580.1,0.38783]
[1729691070929,0.38781,2580.2,2580.0,0.8344]
[1729691070930,3.6364,2580.6,2580.0,0.8344]
[1729691071129,0.38779,2580.4,2580.2,0.3878]
[1729691071335,4.40875844,2580.5,2580.3,0.3878]
[1729691071527,4.40875844,2580.5,2580.4,0.38778]
[1729691071726,4.79652844,2580.5,2580.0,1.80401]
[1729691072030,4.79652844,2580.5,2580.4,0.38778]
[1729691072227,4.79652844,2580.5,2580.0,1.80401]
[1729691072425,4.40875844,2580.5,2580.0,1.80401]
[1729691072626,4.40875844,2580.5,2580.4,0.38778]
[1729691072827,0.4286,2580.6,2580.2,6.2378]
[1729691073136,0.4286,2580.6,2580.5,0.38777]
[1729691073844,0.8338,2580.7,2580.6,0.38775]
[1729691074133,3.2078,2580.9,2580.8,0.38772]
[1729691074332,3.2078,2581.7,2580.8,6.2378]
[1729691074535,0.38764,2581.4,2581.2,3.41766]
[1729691074836,0.4145,2581.6,2581.2,0.81756]
[1729691075041,0.4145,2581.6,2581.2,41.2299]
[1729691075336,4.21685011,2581.5,2581.2,41.2299]
[1729691075539,0.38765,2581.3,2581.2,41.2299]
[1729691075833,0.38765,2581.3,2581.2,40.8]
[1729691076246,4.21685011,2581.5,2581.2,40.8]
[1729691076539,0.38765,2581.3,2581.2,40.8]
[1729691077037,8.37907092,2581.3,2581.2,40.8]
[1729691077248,8.37907092,2581.3,2580.8,3.2078]
[1729691077249,8.96056092,2581.3,2580.8,3.2078]
[1729691077439,0.82,2581.2,2580.8,3.59551]
[1729691077630,0.3877,2581.0,2580.8,44.39551]
[1729691078430,0.3877,2581.0,2580.8,44.39552]
[1729691078631,0.38768,2581.1,2580.8,44.39551]
[1729691078932,0.38771,2580.9,2580.8,44.0078]
[1729691079137,0.82,2581.2,2580.8,44.0078]
[1729691079333,0.38771,2580.9,2580.8,44.39552]
[1729691079732,0.38771,2580.9,2580.8,44.0078]
[1729691080433,0.38775,2580.7,2580.5,3.59556]
[1729691080943,0.38775,2580.6,2580.5,3.59556]
[1729691081135,0.38775,2580.6,2580.5,3.2078]
[1729691081336,4.86549323,2580.6,2580.5,3.2078]
[1729691081638,4.86549323,2580.6,2580.5,6.62557]
[1729691081639,0.38775,2580.6,2580.5,6.62557]
[1729691082039,0.396,2580.9,2580.5,3.2078]
[1729691082240,0.38775,2580.7,2580.5,3.59556]
[1729691082437,0.38775,2580.6,2580.5,3.2078]
[1729691083052,8.55723636,2580.6,2580.5,3.2078]
[1729691083344,0.38783,2580.1,2580.0,3.6317]
[1729691083547,0.96948,2580.4,2580.0,3.6317]
[1729691083750,0.96948,2580.4,2580.1,40.8]
[1729691083751,0.38781,2580.2,2580.1,40.8]
[1729691084442,4.64099119,2580.2,2580.1,40.8]
[1729691085446,4.64099119,2580.2,2580.0,3.6317]
[1729691085447,0.38783,2580.1,2580.0,3.6317]
[1729691085749,0.38783,2580.1,2580.0,3.2078]
[1729691085942,0.38783,2580.1,2580.0,44.0078]
[1729691088141,4.25318119,2580.2,2580.0,44.39564]
[1729691088142,4.64101119,2580.2,2580.0,44.39564]
[1729691088339,4.25318119,2580.2,2580.1,0.38783]
[1729691088540,0.8482,2580.5,2580.0,40.8]
[1729691088738,0.38783,2580.1,2580.0,40.8]
[1729691089247,0.38787,2579.8,2579.7,3.2078]
[1729691089737,0.38787,2579.8,2579.7,44.0078]
[1729691090640,0.8228,2580.0,2579.7,44.39569]
[1729691090844,0.96959,2580.1,2579.7,44.39569]
[1729691090845,3.2078,2580.4,2579.7,47.0378]
[1729691091042,0.38785,2580.0,2579.8,0.38786]
[1729691091348,4.10285344,2580.2,2579.7,47.0378]
[1729691091648,4.0306,2580.4,2579.7,47.4557]
[1729691091960,4.05396303,2580.1,2579.7,47.4557]
[1729691092140,4.44178303,2580.2,2580.0,0.38784]
[1729691092342,0.38781,2580.3,2580.1,0.79332]
[1729691092540,4.0306,2580.4,2580.1,0.4055]
[1729691092746,4.51095519,2580.2,2580.1,0.4055]
[1729691093043,0.38781,2580.2,2580.1,0.4055]
[1729691093243,4.0306,2580.4,2580.1,0.4055]
[1729691093642,4.16186406,2580.3,2580.1,0.79333]
[1729691094156,0.38781,2580.2,2580.1,0.4055]
[1729691094837,0.38781,2580.2,2579.9,0.81325]
[1729691094838,0.38783,2580.1,2579.9,0.81325]
[1729691095038,0.38783,2580.1,2579.9,0.4254]
[1729691095247,0.38784,2580.1,2579.9,0.81325]
[1729691096037,4.21889409,2580.2,2579.9,0.81325]
[1729691096250,0.38783,2580.1,2579.9,0.81325]
[1729691096745,4.21889409,2580.2,2579.9,3.4554]
[1729691096943,3.59559,2580.4,2580.2,0.3878]
[1729691097147,3.2078,2580.4,2580.2,0.3878]
[1729691097342,0.38781,2580.3,2580.1,0.38782]
[1729691097549,3.59559,2580.4,2580.2,0.3878]
[1729691098050,0.3878,2580.3,2580.1,0.38782]
[1729691098452,3.59559,2580.4,2580.2,0.3878]
[1729691098642,3.59559,2580.4,2580.0,0.38784]
[1729691098643,0.3878,2580.3,2580.0,0.38784]
[1729691098842,0.38783,2580.1,2579.9,0.81325]
[1729691099043,0.38782,2580.2,2580.0,0.38784]
[1729691099248,0.38781,2580.2,2580.0,0.38784]
[1729691099458,4.1670077,2580.1,2580.0,0.38784]
[1729691099853,0.38781,2580.3,2579.9,0.4254]
[1729691100047,3.6086,2580.4,2580.1,0.38782]
[1729691100253,0.38781,2580.2,2580.1,0.38783]
[1729691100453,3.03,2580.2,2579.9,0.4254]
[1729691100647,0.38783,2580.1,2580.0,0.38784]
[1729691100845,4.53670936,2580.2,2579.9,0.4254]
[1729691101151,4.53670936,2580.2,2579.8,0.78927]
[1729691101152,0.38785,2580.0,2579.8,0.78927]
[1729691101355,0.38784,2580.0,2579.8,0.78927]
[1729691101553,4.50344936,2580.1,2579.8,0.4014]
[1729691101758,4.50344936,2580.1,2579.9,0.38785]
[1729691102252,4.11560936,2580.1,2579.9,0.38785]
[1729691102454,0.38784,2580.0,2579.9,0.38785]
[1729691102655,0.38785,2580.0,2579.9,0.38785]
[1729691102856,4.11560936,2580.1,2580.0,0.38784]
[1729691103559,0.38785,2580.0,2579.9,0.38785]
[1729691103747,4.11560936,2580.1,2579.8,0.4014]
[1729691103945,4.50344936,2580.1,2580.0,0.38784]
[1729691104754,4.50344936,2580.1,2579.8,0.4014]
[1729691104755,4.11560936,2580.1,2579.8,0.4014]
[1729691105356,4.50344936,2580.1,2579.8,0.4014]
[1729691105660,4.11560936,2580.1,2580.0,0.38784]
[1729691105861,0.38781,2580.3,2580.2,0.38781]
[1729691106064,3.59559,2580.4,2580.3,0.3878]
[1729691106254,3.2078,2580.4,2580.3,0.3878]
[1729691106562,0.38777,2580.5,2580.4,0.38778]
[1729691106759,4.0439,2580.7,2580.5,0.38777]
[1729691106760,0.38776,2580.6,2580.5,0.38777]
[1729691106958,4.0439,2580.7,2580.2,0.3957]
[1729691107153,0.38779,2580.4,2580.2,0.3957]
[1729691107358,0.38779,2580.4,2580.1,0.4077]
[1729691107359,3.03,2580.4,2580.1,0.4077]
[1729691107552,4.86244256,2580.3,2580.1,0.4077]
[1729691107856,5.25024256,2580.3,2580.2,0.38781]
[1729691108058,4.86244256,2580.3,2580.2,0.38781]
[1729691108267,4.86244256,2580.3,2580.2,0.81341]
[1729691108268,4.45784256,2580.3,2580.2,0.81341]
[1729691108456,4.84564256,2580.3,2580.2,0.81341]
[1729691108760,0.3878,2580.3,2580.2,0.81341]
[1729691109163,4.53860854,2580.3,2580.2,0.81341]
[1729691110556,4.15080854,2580.3,2580.2,0.81341]
[1729691110756,4.0439,2580.7,2580.3,0.9695]
[1729691110956,4.0439,2580.7,2580.6,0.38775]
[1729691111160,4.55080206,2580.6,2580.5,0.38777]
[1729691111457,7.75859206,2580.7,2580.5,0.38777]
[1729691111661,7.75859206,2580.7,2580.6,0.38775]
[1729691111662,3.2078,2580.7,2580.6,0.38775]
[1729691112564,1.2215,2580.9,2580.4,3.03]
[1729691112765,7.207,2581.2,2580.6,3.03]
[1729691112766,3.2078,2581.2,2580.6,3.03]
[1729691113065,3.03,2581.4,2580.8,4.17712]
[1729691113356,0.38767,2581.2,2581.0,0.38769]
[1729691113560,4.27725619,2581.3,2580.9,40.8]
[1729691113759,0.38766,2581.3,2580.9,40.8]
[1729691114058,8.42836,2581.5,2581.0,0.38769]
[1729691114059,0.38767,2581.2,2581.0,0.38769]
[1729691114455,4.87607779,2581.4,2581.2,0.38766]
[1729691114656,4.48843779,2581.4,2581.3,0.38765]
[1729691115456,4.48843779,2581.4,2581.0,3.2078]
[1729691115756,4.48843779,2581.4,2581.3,0.38765]
[1729691116460,4.87607779,2581.4,2581.2,0.79906]
[1729691116658,4.48843779,2581.4,2581.2,0.4114]
[1729691116858,4.48843779,2581.4,2581.3,0.38765]
[1729691117056,4.48843779,2581.4,2581.3,0.79145]
[1729691117956,4.87606779,2581.4,2581.3,0.4038]
[1729691118164,4.48843779,2581.4,2581.3,0.4038]
[1729691118361,4.87606779,2581.4,2581.3,0.4038]
[1729691118561,4.87606779,2581.4,2581.3,0.79145]
[1729691118758,4.87606779,2581.4,2581.3,0.4038]
[1729691118958,4.48843779,2581.4,2581.3,0.4038]
[1729691119264,4.87606779,2581.4,2581.3,0.4038]
[1729691119458,4.48843779,2581.4,2581.3,0.79145]
[1729691120563,4.4164,2581.8,2581.3,0.4038]
[1729691120764,0.38764,2581.4,2581.2,0.38765]
[1729691121066,0.38764,2581.4,2581.0,3.2078]
[1729691121067,4.19002286,2581.3,2581.0,3.2078]
[1729691121261,4.19002286,2581.3,2581.2,0.38766]
[1729691121663,0.3876,2581.6,2581.4,0.38763]
[1729691121860,0.3876,2581.6,2581.0,7.20703]
[1729691121861,0.38762,2581.5,2581.3,0.38764]
[1729691122061,0.38762,2581.5,2581.4,0.408]
[1729691122268,3.2078,2581.7,2581.4,0.79563]
[1729691122467,4.3684553,2581.5,2581.4,0.79563]
[1729691122663,0.38762,2581.5,2581.4,0.408]
[1729691122970,0.38761,2581.6,2581.4,0.79563]
[1729691123771,3.5954,2581.7,2581.5,0.38761]
[1729691124162,4.14617141,2581.6,2581.5,0.38761]
[1729691124369,0.38757,2581.8,2581.5,3.03]
[1729691124572,0.38757,2581.8,2581.6,0.38759]
[1729691124763,0.38757,2581.9,2581.6,0.3876]
[1729691124964,3.2078,2582.0,2581.7,3.03]
[1729691125272,0.3986,2582.1,2581.8,0.42]
[1729691125471,0.38755,2582.0,2581.8,0.80756]
[1729691125669,4.46498139,2582.0,2581.8,0.80756]
[1729691125869,4.0257,2582.4,2581.9,3.03]
[1729691126061,0.38753,2582.1,2581.9,3.41755]
[1729691126269,4.4464,2582.4,2581.9,3.41755]
[1729691126270,4.18114017,2582.2,2581.9,6.2378]
[1729691126465,3.2078,2582.4,2582.0,0.4129]
[1729691126670,0.38752,2582.2,2582.1,40.8]
[1729691126869,4.50262821,2582.2,2582.1,40.8]
[1729691127165,0.38752,2582.2,2582.1,40.8]
[1729691127366,4.50262821,2582.2,2582.1,40.8]
[1729691127572,7.53262821,2582.2,2582.1,40.8]
[1729691127771,4.50262821,2582.2,2582.1,40.8]
[1729691128276,4.50262821,2582.2,2582.0,0.4129]
[1729691128277,0.38753,2582.1,2582.0,0.4129]
[1729691128572,4.68874118,2582.1,2582.0,41.2129]
[1729691128776,4.68874118,2582.1,2582.0,0.4129]
[1729691129271,4.68874118,2582.1,2581.7,3.4392]
[1729691129272,14.41181118,2582.1,2581.3,3.03]
[1729691129483,11.50785118,2582.1,2581.6,0.3876]
[1729691129680,3.03,2581.9,2581.2,6.2378]
[1729691129875,0.38761,2581.6,2581.2,3.2078]
[1729691130077,4.93734113,2581.8,2581.2,7.20696]
[1729691130277,0.8204,2581.8,2581.2,7.20696]
[1729691130478,1.20798,2581.8,2581.7,0.38759]
[1729691130884,5.28531027,2581.8,2581.7,0.38759]
[1729691131080,4.07733027,2581.8,2581.7,0.38759]
[1729691131478,0.38757,2581.8,2581.7,0.38759]
[1729691131679,0.38757,2581.9,2581.7,0.38759]
[1729691131875,4.26350071,2581.8,2581.7,0.38759]
[1729691132086,7.29350071,2581.9,2581.5,0.7932]
[1729691132290,0.38759,2581.7,2581.5,1.18081]
[1729691132497,3.03,2581.9,2581.5,0.7932]
[1729691132787,4.65108071,2581.8,2581.6,0.3876]
[1729691132996,0.3876,2581.7,2581.5,1.18081]
[1729691133291,0.3876,2581.7,2580.9,3.2078]
[1729691133292,7.19318321,2581.6,2580.9,3.2078]
[1729691133493,3.03,2581.3,2580.9,4.0524]
[1729691133683,0.38767,2581.2,2581.0,0.38769]
[1729691133880,0.38767,2581.2,2581.1,40.8]
[1729691134384,0.38767,2581.2,2580.9,4.0524]
[1729691134385,3.03,2581.3,2580.9,4.0524]
[1729691134579,0.38769,2581.0,2580.9,4.0524]
[1729691134983,4.66275551,2581.2,2581.0,0.38769]
[1729691135191,4.66275551,2581.2,2580.9,44.8524]
[1729691135192,4.27508551,2581.2,2580.9,44.8524]
[1729691135389,4.66275551,2581.2,2580.9,44.8524]
[1729691135589,0.38766,2581.3,2581.1,0.38767]
[1729691136091,4.7099803,2581.3,2581.1,0.38767]
[1729691136281,4.3223203,2581.3,2581.2,0.38766]
[1729691136681,4.3223203,2581.3,2581.0,3.03]
[1729691136881,4.7099803,2581.3,2581.1,0.38767]
[1729691137688,4.3223203,2581.3,2580.9,44.8524]
[1729691137892,4.7099703,2581.3,2581.1,0.38766]
[1729691138090,4.7099703,2581.3,2581.1,0.38767]
[1729691138294,4.7099703,2581.3,2580.9,44.8524]
[1729691138486,4.7099703,2581.3,2581.1,0.38767]
[1729691138789,4.3223203,2581.3,2580.9,44.8524]
[1729691138995,6.2378,2581.4,2580.9,45.82167]
[1729691139197,6.2378,2581.4,2581.3,0.38765]
[1729691139391,3.2078,2581.4,2581.3,0.38765]
[1729691139885,0.38759,2581.7,2581.1,0.96919]
[1729691140086,0.38759,2581.7,2581.5,0.38761]
[1729691140087,0.3876,2581.7,2581.5,0.38761]
[1729691140289,4.41358446,2581.7,2581.2,4.17696]
[1729691140490,4.41358446,2581.7,2581.6,0.3876]
[1729691140885,0.38758,2581.8,2581.6,0.3876]
[1729691141089,0.78487,2581.9,2581.7,0.38758]
[1729691141390,4.35882722,2581.8,2581.7,0.38759]
[1729691141590,3.819,2582.2,2581.5,7.20685]
[1729691141791,0.38754,2582.1,2581.9,0.38755]
[1729691141996,0.38755,2582.0,2581.8,0.38757]
[1729691142293,4.1450746,2582.1,2581.9,0.38756]
[1729691142495,0.38754,2582.0,2581.8,0.38756]
[1729691142692,0.38754,2582.0,2581.9,0.38756]
[1729691142999,0.38751,2582.3,2582.1,0.38752]
[1729691143491,0.38751,2582.3,2582.2,40.8]
[1729691144192,3.2078,2582.4,2582.2,40.8]
[1729691144386,0.3875,2582.3,2582.2,40.8]
[1729691144594,7.9073977,2582.3,2582.2,40.8]
[1729691145298,4.8773977,2582.3,2582.2,40.8]
[1729691146197,0.3875,2582.3,2582.2,40.8]
[1729691146400,3.4311,2582.5,2582.2,40.8]
[1729691146599,0.38748,2582.5,2582.3,0.38749]
[1729691146797,3.2078,2582.7,2582.3,0.96875]
[1729691146997,3.2078,2582.7,2582.4,0.79857]
[1729691146998,3.59525,2582.7,2582.4,0.79857]
[1729691147200,4.11983271,2582.6,2582.5,0.38747]
[1729691147899,4.11983271,2582.6,2582.4,0.4111]
[1729691148095,4.11983271,2582.6,2582.5,0.38747]
[1729691149601,4.11983271,2582.6,2582.4,0.4111]
[1729691149803,4.11983271,2582.6,2582.5,0.38747]
[1729691150107,3.5952,2583.0,2582.8,0.38742]
[1729691150301,3.5952,2583.0,2582.9,0.38741]
[1729691150302,3.2078,2583.0,2582.9,0.38741]
[1729691150814,4.48978571,2583.0,2582.9,0.38741]
[1729691150999,3.6065,2583.3,2582.4,6.6489]
[1729691151000,0.38741,2582.9,2582.4,6.6489]
[1729691151203,3.6065,2583.3,2582.6,3.03]
[1729691151504,4.40095731,2583.2,2582.7,3.2078]
[1729691151693,3.39235,2583.9,2582.7,3.2078]
[1729691151694,3.2078,2583.8,2583.0,6.2378]
[1729691151901,3.2078,2583.8,2583.6,0.38729]
[1729691152207,4.10525612,2583.9,2583.7,43.83]
[1729691152409,0.3987,2584.3,2583.7,40.8]
[1729691152611,0.3987,2584.3,2583.9,3.2078]
[1729691152912,4.28349429,2584.2,2583.9,3.2078]
[1729691153110,7.31349429,2584.2,2583.7,40.8]
[1729691153301,3.03,2583.9,2583.7,40.8]
[1729691153506,0.38727,2583.8,2583.7,40.8]
[1729691153710,4.67076429,2583.8,2583.7,40.8]
[1729691154002,0.38732,2583.6,2583.3,3.2078]
[1729691154209,0.38732,2583.5,2583.3,3.2078]
[1729691154410,4.50551832,2583.5,2583.3,3.2078]
[1729691155005,4.89283832,2583.5,2583.3,3.2078]
[1729691155212,0.38733,2583.4,2583.3,3.2078]
[1729691155406,4.50551832,2583.5,2583.3,3.2078]
[1729691155706,0.38733,2583.4,2583.3,3.2078]
[1729691155910,4.43125049,2583.4,2583.3,3.2078]
[1729691156104,4.04392049,2583.4,2582.9,6.2378]
[1729691156408,0.96816,2583.9,2583.2,0.38735]
[1729691156409,0.38732,2583.5,2583.2,0.38735]
[1729691156609,0.38732,2583.5,2583.0,3.72]
[1729691156610,0.38732,2583.5,2583.0,44.52]
[1729691156806,0.38732,2583.5,2583.2,3.59515]
[1729691157111,0.7894,2583.7,2583.5,0.38731]
[1729691158505,0.7894,2583.7,2583.3,0.8312]
[1729691158711,0.3998,2583.7,2583.3,0.8312]
[1729691158911,0.3998,2583.7,2583.5,0.38731]
[1729691159405,3.6059,2584.0,2583.7,0.38728]
[1729691159610,1.18365,2584.0,2583.7,0.38728]
[1729691159811,4.24814367,2583.9,2583.7,0.38728]
[1729691160008,4.24814367,2583.9,2583.8,0.38727]
[1729691160315,0.3983,2584.0,2583.8,3.2078]
[1729691160614,0.3983,2584.0,2583.9,0.38726]
[1729691160914,0.4194,2584.3,2583.8,7.0782]
[1729691161112,0.4194,2584.3,2584.1,0.38722]
[1729691161314,3.59499,2584.4,2584.2,40.8]
[1729691161609,3.2078,2584.4,2584.2,40.8]
[1729691161910,3.2078,2584.4,2584.2,41.18721]
[1729691162714,1.17448,2584.5,2584.2,41.18721]
[1729691162715,0.3872,2584.3,2584.2,40.8]
[1729691163207,0.7873,2584.5,2584.2,40.8]
[1729691163208,4.66874007,2584.4,2584.2,40.8]
[1729691163402,3.2078,2585.0,2584.4,0.96796]
[1729691163603,3.2078,2585.0,2584.3,7.5896]
[1729691163604,3.2078,2585.0,2584.7,0.38714]
[1729691163808,0.38715,2584.6,2584.5,3.2078]
[1729691164011,0.38715,2584.7,2584.4,0.38718]
[1729691164219,0.38715,2584.7,2584.2,40.8]
[1729691164220,4.09175874,2584.6,2584.2,40.8]
[1729691164509,1.2171,2584.9,2584.2,40.8]
[1729691164510,4.09175874,2584.8,2584.2,40.8]
[1729691164705,4.09175874,2584.8,2584.6,0.38715]
[1729691164906,0.4283,2584.9,2584.7,0.38713]
[1729691165106,3.2078,2585.0,2584.8,0.38712]
[1729691165507,3.2078,2585.0,2584.6,0.4046]
[1729691165808,3.2078,2585.0,2584.6,0.8]
[1729691165809,3.5949,2585.0,2584.6,0.8]
[1729691166114,3.5949,2585.0,2584.7,0.38714]
[1729691166409,3.2078,2585.0,2584.6,0.8]
[1729691166611,3.5949,2585.0,2584.8,0.38712]
[1729691167018,3.5949,2585.0,2584.6,0.8]
[1729691167019,0.38711,2584.9,2584.7,0.38713]
[1729691167214,3.2078,2585.0,2584.7,0.38714]
[1729691167410,3.2078,2585.0,2584.6,0.8]
[1729691168208,0.38713,2584.8,2584.6,1.18715]
[1729691168414,3.2078,2585.0,2584.6,1.18715]
[1729691168612,3.2078,2585.0,2584.5,3.2078]
[1729691168918,0.38712,2584.9,2584.5,3.2078]
[1729691169118,0.38712,2584.9,2584.7,0.38713]
[1729691169415,0.38715,2584.7,2584.5,3.59496]
[1729691169611,3.2078,2585.0,2584.5,3.59496]
[1729691169808,3.2078,2585.0,2584.7,0.38713]
[1729691169809,0.38713,2584.8,2584.7,0.38713]
[1729691170011,0.38713,2584.8,2584.5,3.2078]
[1729691170012,0.38712,2584.9,2584.5,3.2078]
[1729691170206,0.38712,2584.9,2584.8,0.38712]
[1729691170517,0.3958,2585.1,2584.5,3.2078]
[1729691170711,0.38711,2584.9,2584.8,0.38711]
[1729691170910,0.78289,2585.1,2584.9,0.3871]
[1729691171124,0.38709,2585.0,2584.9,0.3871]
[1729691171613,0.78289,2585.1,2584.9,0.3871]
[1729691171819,0.38709,2585.1,2584.9,0.3871]
[1729691172315,0.3967,2585.2,2584.8,3.2078]
[1729691172316,0.38711,2584.9,2584.8,3.2078]
[1729691172521,0.38714,2584.7,2584.5,3.59496]
[1729691172710,0.38715,2584.6,2584.5,3.2078]
[1729691172914,0.96778,2584.9,2584.5,3.2078]
[1729691172915,0.4011,2584.9,2584.5,3.59497]
[1729691173217,0.38717,2584.5,2584.4,0.77908]
[1729691173422,0.38717,2584.6,2584.4,0.77907]
[1729691173713,4.34192608,2584.8,2584.4,0.3919]
[1729691173918,4.34192608,2584.8,2584.5,3.2078]
[1729691174116,0.38715,2584.6,2584.5,3.59497]
[1729691174317,0.38715,2584.6,2584.5,3.2078]
[1729691174517,0.38715,2584.6,2584.5,3.59497]
[1729691174919,0.38715,2584.6,2584.5,3.2078]
[1729691175521,0.38715,2584.6,2584.5,3.59497]
[1729691175823,0.38715,2584.6,2584.5,7.46377]
[1729691176327,0.38715,2584.7,2584.6,0.38714]
[1729691176513,0.38713,2584.8,2584.7,0.38712]
[1729691176914,0.38712,2584.9,2584.8,0.38711]